bitfinex/quotes_ETHUSD_20250130
["timestamp","ask_amount","ask_price","bid_price","bid_amount"]
[1738249022148,1.0088,3283.5,3282.5,3.04639]
[1738249022346,0.015,3283.3,3282.6,3.04634]
[1738249023081,0.015,3283.4,3282.4,3.04655]
[1738249023286,0.015,3283.4,3282.4,3.04646]
[1738249023491,0.015,3283.0,3282.2,3.0467]
[1738249023719,0.396792,3283.0,3282.7,3.04625]
[1738249023916,0.015,3283.0,3282.6,3.04633]
[1738249024379,0.015,3283.0,3281.1,6.37603459]
[1738249024589,0.015,3283.0,3278.5,8.81]
[1738249024590,3.85385,3281.1,3279.3,0.1]
[1738249024926,3.85385,3281.1,3279.5,3.04922]
[1738249024927,0.7709,3280.8,3279.5,3.04922]
[1738249025226,3.0,3280.3,3279.1,3.04953]
[1738249025393,0.604843,3280.2,3278.4,3.42425459]
[1738249025594,0.7628,3280.3,3279.2,3.04949]
[1738249025913,0.0075,3280.2,3279.1,3.04961]
[1738249026078,0.015,3280.2,3279.1,3.04961]
[1738249026283,1.07981079,3280.2,3279.1,3.04961]
[1738249026479,1.07981079,3280.2,3279.2,3.04951]
[1738249026781,0.72726108,3280.1,3278.6,0.03049423]
[1738249026983,3.015,3279.7,3278.3,0.61118418]
[1738249027187,3.015,3279.7,3277.5,3.05107]
[1738249027188,0.7703,3279.2,3278.0,3.05056]
[1738249027408,0.0075,3279.1,3277.2,3.0513]
[1738249027729,0.8261,3278.9,3277.7,3.05086]
[1738249027884,0.243,3278.8,3277.6,3.05099]
[1738249028084,0.015,3278.7,3277.7,3.0509]
[1738249028321,0.3258,3278.6,3277.7,3.0509]
[1738249028536,0.015,3278.7,3277.7,3.0509]
[1738249029029,3.0,3278.6,3277.3,3.05128]
[1738249029238,0.015,3278.3,3277.3,3.05128]
[1738249029790,0.7726,3278.2,3277.3,3.05128]
[1738249030136,0.0075,3278.1,3277.2,3.05137]
[1738249030285,0.015,3278.1,3277.2,3.05137]
[1738249030484,0.015,3278.1,3277.1,3.13670053]
[1738249030718,0.015,3278.1,3277.2,3.05132]
[1738249031036,0.015,3278.1,3277.1,6.18816053]
[1738249031037,0.015,3278.1,3277.1,3.05146]
[1738249031335,0.015,3278.1,3277.0,0.4992]
[1738249031336,3.015,3278.1,3277.0,0.4992]
[1738249031633,0.015,3277.9,3277.0,0.4992]
[1738249031830,0.805,3277.8,3277.0,0.4992]
[1738249032035,3.0075,3277.3,3276.1,3.0524]
[1738249032196,0.242,3277.2,3276.1,3.05232]
[1738249032399,0.242,3277.2,3276.3,3.05218]
[1738249032593,0.242,3277.1,3276.6,3.05189]
[1738249033219,0.242,3277.1,3276.5,3.05203]
[1738249033608,0.242,3277.1,3275.7,0.60892574]
[1738249033780,0.242,3277.0,3276.3,3.05215]
[1738249033988,0.242,3277.0,3276.1,3.05239]
[1738249034393,0.0075,3276.7,3275.8,3.0526]
[1738249034730,0.0075,3276.7,3275.6,3.05286]
[1738249034731,0.015,3276.7,3275.6,3.05286]
[1738249034940,0.015,3276.7,3275.7,3.05278]
[1738249035099,0.015,3276.7,3275.5,3.05296]
[1738249035833,0.015,3276.7,3275.6,3.05284]
[1738249035986,0.015,3276.7,3275.4,3.66657166]
[1738249036182,3.015,3276.7,3275.4,3.66657166]
[1738249036431,3.05234,3276.2,3274.8,3.05362]
[1738249036731,0.7843,3276.1,3274.5,0.03053425]
[1738249036944,1.0263,3276.1,3274.9,3.0535]
[1738249037092,1.0263,3276.1,3274.8,0.60209679]
[1738249037292,1.0263,3276.1,3274.3,3.05403]
[1738249037293,0.0075,3275.8,3274.5,3.05381]
[1738249037489,0.8156,3275.6,3274.6,0.6212808]
[1738249038039,1.0511,3275.6,3275.1,3.05326]
[1738249038385,0.8081,3275.6,3274.9,3.05352]
[1738249038600,0.8081,3275.6,3274.6,0.6212808]
[1738249039009,0.015,3275.5,3274.6,0.6212808]
[1738249039238,0.015,3275.5,3274.5,3.05384]
[1738249039439,0.015,3275.5,3274.3,3.05408]
[1738249039799,0.015,3275.5,3274.4,3.05393]
[1738249040001,0.015,3275.3,3274.2,3.05411]
[1738249040217,0.015,3275.3,3274.0,3.72098667]
[1738249040416,0.015,3275.3,3274.1,3.05424]
[1738249040599,3.243,3275.4,3274.0,0.66666667]
[1738249040600,1.1066,3275.2,3274.0,0.66666667]
[1738249040923,3.05334,3275.1,3274.0,0.66666667]
[1738249041129,0.8282,3275.0,3274.0,0.66666667]
[1738249041297,3.8311,3274.7,3274.0,0.66666667]
[1738249041498,0.015,3274.6,3274.0,0.66666667]
[1738249041995,0.8311,3274.7,3274.0,0.66666667]
[1738249042193,0.8027,3275.1,3274.1,0.03054029]
[1738249042396,0.8027,3275.1,3274.7,3.05362]
[1738249042638,0.8027,3275.1,3274.0,0.66666667]
[1738249042940,0.8027,3275.1,3274.3,3.05405]
[1738249043141,1.0457,3275.1,3274.4,3.05399]
[1738249043453,0.8027,3275.1,3274.4,3.05395]
[1738249043740,0.8027,3275.1,3274.9,3.05352]
[1738249043943,1.0101,3275.5,3275.0,3.05343]
[1738249044155,0.7671,3275.5,3274.9,3.05352]
[1738249044294,0.7671,3275.5,3274.4,0.0274]
[1738249044494,0.7671,3275.5,3275.0,3.05335]
[1738249044768,0.7671,3275.5,3274.6,3.05375]
[1738249045050,0.7671,3275.5,3275.0,3.05343]
[1738249045212,0.7671,3275.5,3274.3,0.60205902]
[1738249045402,0.0075,3275.4,3274.6,3.05372]
[1738249046019,0.7671,3275.5,3274.8,3.05357]
[1738249046230,0.7671,3275.5,3274.8,3.05361]
[1738249046837,0.7671,3275.5,3274.4,3.05398]
[1738249046838,0.015,3275.4,3274.4,3.05398]
[1738249047061,0.015,3275.2,3274.2,3.05417]
[1738249047285,0.015,3275.2,3274.3,3.05406]
[1738249047726,0.015,3275.2,3274.2,3.65269318]
[1738249047933,0.0075,3275.0,3274.2,0.59851318]
[1738249048117,0.0075,3275.0,3274.1,3.05427]
[1738249048310,0.0075,3275.0,3274.0,0.66666667]
[1738249048549,0.8045,3275.1,3274.7,3.05368]
[1738249048817,0.8045,3275.1,3274.5,3.05383]
[1738249049077,0.8045,3275.1,3274.0,1.27278284]
[1738249049356,0.015,3275.0,3274.1,3.05427]
[1738249050264,0.015,3275.0,3274.0,1.27278284]
[1738249050447,0.0075,3275.0,3274.0,1.27278284]
[1738249050650,0.0075,3275.0,3274.1,3.05421]
[1738249051216,0.015,3275.0,3274.0,1.27278284]
[1738249051647,0.015,3275.0,3274.0,0.66666667]
[1738249051815,0.015,3275.0,3274.0,3.72101667]
[1738249052033,0.0075,3275.0,3274.0,3.72101667]
[1738249052228,0.0075,3275.0,3274.1,3.05425]
[1738249052429,0.243,3274.9,3274.1,3.05425]
[1738249052632,0.0075,3274.8,3274.0,0.66666667]
[1738249052964,0.015,3274.8,3274.0,0.66666667]
[1738249053166,1.093,3274.7,3274.0,0.66666667]
[1738249053666,0.0075,3274.6,3274.0,0.66666667]
[1738249054538,0.0075,3274.4,3274.0,0.66666667]
[1738249055364,3.0075,3274.4,3274.0,0.66666667]
[1738249055937,3.0,3274.4,3274.0,0.66666667]
[1738249056270,0.9977,3274.5,3274.0,0.66666667]
[1738249056418,0.7547,3274.5,3274.0,0.66666667]
[1738249057825,0.243,3274.7,3274.0,0.66666667]
[1738249058063,0.5673,3274.7,3274.0,0.66666667]
[1738249058266,0.38650249,3274.7,3274.0,0.66666667]
[1738249058568,3.0,3274.5,3274.0,0.66666667]
[1738249058727,3.0,3274.5,3274.1,3.05423]
[1738249059072,3.44283095,3275.0,3274.3,3.054]
[1738249059364,3.44283095,3275.0,3274.0,0.66666667]
[1738249059365,0.0075,3274.9,3274.0,0.66666667]
[1738249059570,3.44283095,3274.6,3274.0,0.66666667]
[1738249060371,3.0075,3274.5,3274.0,0.66666667]
[1738249061076,0.0075,3274.3,3274.0,0.66666667]
[1738249061275,0.7916,3274.4,3274.0,0.66666667]
[1738249062928,0.7592,3274.8,3274.0,0.66666667]
[1738249063274,0.7592,3274.8,3274.1,3.05427]
[1738249063580,0.7739,3275.5,3274.5,3.05383]
[1738249063872,0.7739,3275.5,3274.1,0.55]
[1738249063873,0.7739,3275.5,3274.3,3.054]
[1738249064077,0.7739,3275.5,3274.3,3.05399]
[1738249064225,0.17717216,3275.4,3274.2,3.05416]
[1738249064428,0.17717216,3275.4,3274.0,3.72101667]
[1738249064672,0.17717216,3275.4,3274.1,3.05427]
[1738249064962,0.17717216,3275.4,3274.0,3.72101667]
[1738249064963,0.17717216,3275.4,3274.2,3.05417]
[1738249065729,0.17717216,3275.4,3274.0,4.02631667]
[1738249066079,0.40040722,3275.3,3274.0,4.02631667]
[1738249066443,0.7961,3275.1,3274.0,0.66666667]
[1738249067064,0.7961,3275.1,3274.0,3.72093667]
[1738249067393,0.7961,3275.1,3274.0,0.66666667]
[1738249069377,0.7961,3274.9,3274.1,0.7496]
[1738249069530,0.015,3274.8,3274.1,0.7496]
[1738249070787,0.7961,3274.7,3274.1,0.7496]
[1738249071083,0.38111,3274.6,3274.1,0.7496]
[1738249071294,0.7573,3274.4,3274.1,0.7496]
[1738249071434,0.24,3274.3,3274.1,0.7496]
[1738249072426,4.36978,3274.2,3274.1,0.7496]
[1738249072549,0.015,3273.5,3273.2,0.1671596]
[1738249073583,0.8311,3273.3,3273.2,0.1671596]
[1738249073889,3.88612,3273.3,3273.2,0.1671596]
[1738249074089,0.015,3272.7,3271.5,0.614333]
[1738249074235,0.255,3272.6,3271.4,3.05677]
[1738249074564,0.255,3272.6,3271.2,6.11388]
[1738249074771,0.015,3272.4,3271.1,3.05706]
[1738249075085,0.411877,3272.4,3271.5,3.05663]
[1738249075233,0.7931,3272.5,3271.0,4.52288725]
[1738249075234,0.7931,3272.5,3271.1,0.03055963]
[1738249075429,0.7931,3272.5,3271.5,3.05664]
[1738249075879,0.7931,3272.5,3271.3,3.0874427]
[1738249076198,0.7931,3272.5,3271.4,3.05679]
[1738249076388,0.7931,3272.5,3271.3,3.05687]
[1738249076535,0.7931,3272.5,3271.4,3.05676]
[1738249076732,0.7931,3272.5,3271.0,1.38366927]
[1738249076733,0.0075,3272.4,3271.1,3.05703]
[1738249076967,0.015,3272.4,3271.0,4.44073927]
[1738249077567,0.015,3272.2,3271.0,3.05707]
[1738249077887,0.015,3272.0,3270.6,3.87252]
[1738249078051,0.015,3272.0,3270.8,3.05729]
[1738249078252,3.0,3272.2,3270.6,3.87252]
[1738249078253,0.015,3271.8,3270.6,3.87252]
[1738249078549,0.015,3271.8,3270.6,3.05752]
[1738249078872,0.015,3271.8,3270.8,3.05728]
[1738249079183,0.015,3271.8,3270.5,0.62357543]
[1738249079184,0.795,3271.9,3270.9,0.03056962]
[1738249079348,0.795,3271.9,3270.7,0.7864]
[1738249079692,0.795,3271.9,3270.8,0.03056329]
[1738249079853,0.795,3271.9,3271.2,3.05691]
[1738249080314,0.795,3271.9,3271.4,3.05673]
[1738249080668,0.795,3271.9,3271.2,3.05691]
[1738249080669,0.7606,3272.5,3271.2,3.05692]
[1738249080967,0.015,3272.2,3270.8,3.05734]
[1738249081133,0.015,3272.2,3270.9,3.05723]
[1738249081309,0.7856,3272.1,3270.9,3.05723]
[1738249081515,0.015,3271.8,3270.4,3.05765]
[1738249081713,0.38006,3271.7,3270.3,1.45670655]
[1738249081967,0.7856,3271.9,3271.2,3.05697]
[1738249082329,0.7856,3271.9,3271.0,3.0571]
[1738249082751,0.7856,3271.9,3271.1,3.05705]
[1738249083058,0.7856,3271.9,3271.0,3.0571]
[1738249083260,0.7856,3271.9,3271.2,3.05694]
[1738249084235,0.7856,3271.9,3270.8,0.8025]
[1738249084434,0.015,3271.8,3270.4,3.85982]
[1738249084755,0.38006,3271.7,3270.6,3.05754]
[1738249084947,0.015,3271.8,3270.4,3.85982]
[1738249084948,0.015,3271.8,3270.4,0.8021]
[1738249085292,0.7687,3271.5,3270.3,3.05782]
[1738249085442,0.7837,3271.0,3270.1,0.91590901]
[1738249085777,0.7687,3270.7,3270.1,0.91590901]
[1738249085979,0.015,3270.6,3270.1,0.3053]
[1738249086341,3.0,3270.5,3270.0,0.1671596]
[1738249086541,0.86156191,3270.9,3270.0,0.1671596]
[1738249086542,1.0687,3270.4,3270.0,0.1671596]
[1738249086742,0.7991,3270.2,3270.0,0.1671596]
[1738249086965,0.015,3270.1,3270.0,0.1671596]
[1738249087166,6.87211,3270.1,3270.0,0.1671596]
[1738249087784,3.8141,3270.1,3270.0,0.1671596]
[1738249088141,3.7991,3270.1,3270.0,0.1671596]
[1738249088581,4.20301,3270.1,3270.0,0.1671596]
[1738249088882,4.21801,3270.1,3270.0,0.1671596]
[1738249089854,4.45801,3270.1,3270.0,0.1671596]
[1738249090938,4.21801,3270.1,3270.0,0.1671596]
[1738249091183,4.45801,3270.1,3270.0,0.1671596]
[1738249091998,8.06602,3270.1,3270.0,0.1671596]
[1738249092295,0.8185,3269.9,3268.9,0.66666667]
[1738249092581,0.015,3269.7,3268.9,0.66666667]
[1738249092945,0.015,3269.5,3268.9,0.66666667]
[1738249093188,0.015,3269.3,3268.9,0.66666667]
[1738249093986,0.7844,3269.4,3268.9,0.66666667]
[1738249094763,0.94724806,3269.4,3268.9,0.66666667]
[1738249095062,0.7844,3269.4,3268.9,0.66666667]
[1738249096086,0.015,3269.3,3268.9,0.66666667]
[1738249096398,0.7844,3269.4,3268.9,0.66666667]
[1738249097147,1.061,3269.8,3268.9,0.66666667]
[1738249097350,1.061,3269.8,3268.9,3.72571667]
[1738249097544,0.015,3270.1,3269.0,3.05901]
[1738249097784,0.015,3270.1,3269.1,3.05893]
[1738249097982,1.43349016,3270.2,3268.9,0.66666667]
[1738249097983,0.823,3270.0,3268.9,0.66666667]
[1738249098185,0.823,3270.0,3269.0,3.08959914]
[1738249098393,0.823,3270.0,3269.0,3.05901]
[1738249098600,0.015,3269.9,3269.1,0.03058711]
[1738249098789,0.015,3269.9,3268.9,0.66666667]
[1738249099089,0.256,3269.9,3268.9,0.66666667]
[1738249099296,0.0075,3269.7,3268.9,0.66666667]
[1738249100493,0.8142,3269.8,3268.9,0.66666667]
[1738249101171,0.8142,3269.8,3269.0,3.05899]
[1738249101572,0.8142,3269.8,3269.1,0.03058484]
[1738249101764,0.8142,3269.8,3269.0,3.05899]
[1738249102161,0.8142,3269.8,3268.9,0.66666667]
[1738249102365,0.8142,3269.8,3268.9,3.72577667]
[1738249102787,0.8142,3269.8,3268.9,6.78488667]
[1738249102994,0.8142,3269.8,3269.1,3.05892]
[1738249103992,0.8142,3269.8,3268.9,0.66666667]
[1738249103993,0.8303,3270.1,3269.2,3.05884]
[1738249104195,0.8303,3270.1,3269.0,3.05897]
[1738249104396,0.015,3270.0,3268.9,0.66666667]
[1738249104595,0.8303,3270.1,3269.0,3.05897]
[1738249104899,0.8303,3270.1,3269.2,3.05884]
[1738249105596,0.8303,3270.1,3269.0,3.05897]
[1738249106199,0.015,3270.0,3268.9,0.66666667]
[1738249106495,0.015,3270.0,3269.1,3.05886]
[1738249106700,0.8303,3270.1,3269.2,3.05883]
[1738249106859,0.8303,3270.1,3268.9,0.66666667]
[1738249107201,0.8303,3270.1,3269.2,3.05882]
[1738249107695,0.8303,3270.1,3269.2,3.88239]
[1738249107902,0.8303,3270.1,3269.5,3.05851]
[1738249108198,0.7814,3270.6,3269.9,3.05813]
[1738249108502,0.7814,3270.6,3269.7,3.05835]
[1738249108799,0.7814,3270.6,3269.3,3.60866]
[1738249108951,3.7814,3270.6,3269.5,3.05855]
[1738249109156,0.015,3270.5,3269.3,3.05866]
[1738249109399,0.015,3270.5,3269.2,4.48481307]
[1738249109694,3.0,3270.4,3268.9,0.66666667]
[1738249109895,0.015,3270.2,3268.9,0.66666667]
[1738249110144,0.015,3270.2,3269.1,0.3053]
[1738249110297,0.015,3270.2,3268.9,0.66666667]
[1738249110507,0.015,3270.2,3268.9,3.72577667]
[1738249110508,3.015,3270.2,3268.9,3.72577667]
[1738249110666,0.689835,3270.1,3268.9,0.66666667]
[1738249110867,0.015,3270.2,3268.9,0.69725013]
[1738249111068,3.85483,3270.0,3268.9,0.66666667]
[1738249111299,0.7967,3269.5,3268.9,0.66666667]
[1738249111513,3.05882,3269.3,3268.9,0.66666667]
[1738249111720,3.015,3269.1,3268.9,0.66666667]
[1738249112017,0.700557,3269.0,3268.9,0.66666667]
[1738249112170,0.015,3269.0,3268.9,0.66666667]
[1738249112372,3.84283,3269.0,3268.9,0.66666667]
[1738249112570,6.84283,3269.0,3268.9,0.66666667]
[1738249114302,3.7838,3269.0,3268.9,0.66666667]
[1738249114502,4.0218,3269.0,3268.9,0.66666667]
[1738249114707,3.7688,3269.0,3268.9,0.66666667]
[1738249115074,4.14568,3269.0,3268.9,0.66666667]
[1738249115414,7.21971,3269.0,3268.9,0.66666667]
[1738249117418,4.16068,3269.0,3268.9,0.66666667]
[1738249117729,7.21971,3269.0,3268.9,0.66666667]
[1738249117906,4.16068,3269.0,3268.9,0.66666667]
[1738249118277,3.7838,3269.0,3268.9,0.66666667]
[1738249118720,6.84283,3269.0,3268.9,0.66666667]
[1738249121578,7.63083,3269.0,3268.9,0.66666667]
[1738249122785,7.08083,3269.0,3268.9,0.66666667]
[1738249123122,3.7838,3269.0,3268.9,0.66666667]
[1738249123433,3.7763,3269.0,3268.9,0.66666667]
[1738249123728,3.7838,3269.0,3268.9,0.66666667]
[1738249124321,4.18588,3269.0,3268.9,0.66666667]
[1738249124493,3.41708,3269.0,3268.9,0.66666667]
[1738249125090,4.20438,3269.0,3268.9,0.66666667]
[1738249125331,7.26341,3269.0,3268.9,0.66666667]
[1738249125623,4.20438,3269.0,3268.9,0.66666667]
[1738249125790,3.8023,3269.0,3268.9,0.66666667]
[1738249126198,3.015,3269.0,3268.9,0.66666667]
[1738249126641,3.0075,3269.0,3268.9,0.66666667]
[1738249129305,3.015,3269.0,3268.9,0.66666667]
[1738249131508,3.3165,3269.0,3268.9,0.66666667]
[1738249133012,7.20533,3269.0,3268.9,0.66666667]
[1738249133612,7.75533,3269.0,3268.9,0.66666667]
[1738249134244,7.20533,3269.0,3268.9,0.66666667]
[1738249135715,7.44033,3269.0,3268.9,0.66666667]
[1738249136043,4.3813,3269.0,3268.9,0.66666667]
[1738249136245,3.8448,3269.0,3268.9,0.66666667]
[1738249136929,6.90383,3269.0,3268.9,0.66666667]
[1738249137306,3.8448,3269.0,3268.9,0.66666667]
[1738249137508,3.015,3269.0,3268.9,0.66666667]
[1738249137702,3.622386,3269.0,3268.9,0.66666667]
[1738249138166,6.681416,3269.0,3268.9,0.66666667]
[1738249138452,7.231416,3269.0,3268.9,0.66666667]
[1738249138604,8.052116,3269.0,3268.9,0.66666667]
[1738249141383,8.052116,3269.0,3267.3,0.8234]
[1738249141384,0.015,3267.9,3267.3,0.8234]
[1738249141696,0.015,3267.7,3267.3,0.8234]
[1738249141903,3.07527,3267.7,3267.3,0.8234]
[1738249142062,3.0,3267.6,3266.8,0.8234]
[1738249142263,0.015,3267.5,3266.8,0.8234]
[1738249142504,0.307499,3267.8,3266.8,3.88444]
[1738249142648,0.015,3267.7,3266.9,3.09154527]
[1738249142990,0.76033398,3269.0,3267.3,0.8234]
[1738249142991,4.12535,3268.6,3267.3,0.8234]
[1738249143196,3.015,3268.5,3267.3,3.88401]
[1738249143597,0.015,3268.5,3267.5,3.0604]
[1738249144168,0.015,3268.5,3267.6,0.03059948]
[1738249144480,0.015,3268.5,3267.6,3.06026]
[1738249144676,0.015,3268.5,3267.5,3.0604]
[1738249145362,0.015,3268.5,3267.0,0.61645429]
[1738249145363,0.015,3268.5,3267.9,3.06006]
[1738249145599,3.29177,3269.3,3268.1,3.05985]
[1738249145912,3.29177,3269.3,3267.2,3.44253112]
[1738249145913,3.015,3268.4,3267.6,0.7667]
[1738249146220,0.015,3268.2,3267.6,0.7667]
[1738249146763,3.0,3268.1,3267.6,0.7667]
[1738249146976,3.0,3268.1,3267.2,0.28629996]
[1738249146977,0.015,3268.0,3267.2,0.28629996]
[1738249147679,0.45190613,3268.6,3267.5,0.6154]
[1738249147885,0.31922637,3271.9,3267.2,0.28629996]
[1738249147886,0.31922637,3271.9,3269.2,0.55]
[1738249148087,0.185459,3271.8,3269.8,0.55]
[1738249148302,0.185459,3271.8,3270.7,3.05741]
[1738249148609,3.05654,3271.7,3270.8,3.44253112]
[1738249148809,3.05654,3271.7,3270.3,3.05781]
[1738249148810,3.05695,3271.3,3270.4,3.44253112]
[1738249149111,0.185459,3271.8,3270.8,3.44253112]
[1738249149315,3.05692,3271.3,3270.8,3.44253112]
[1738249149481,0.305692,3271.2,3270.8,3.44253112]
[1738249149680,0.015,3271.1,3270.8,3.44253112]
[1738249150219,3.0568,3271.4,3270.8,3.44253112]
[1738249150397,0.255,3271.6,3271.2,3.44253112]
[1738249150585,3.3116,3271.6,3271.2,3.44253112]
[1738249150918,0.015,3271.5,3271.2,3.44253112]
[1738249151216,3.241879,3271.8,3271.2,3.44253112]
[1738249151217,0.185459,3271.8,3271.2,3.44253112]
[1738249151367,0.8327,3272.1,3271.0,3.67282]
[1738249151368,0.8327,3272.1,3271.7,3.44253112]
[1738249151825,0.015,3272.0,3271.7,3.44253112]
[1738249152193,1.0867,3272.5,3271.7,3.44253112]
[1738249152530,1.0867,3272.5,3272.3,3.44253112]
[1738249152725,1.0867,3272.5,3271.1,3.05707]
[1738249152726,0.015,3272.4,3271.4,3.44253112]
[1738249153239,0.015,3272.2,3271.0,7.11537112]
[1738249153453,0.015,3272.0,3271.0,4.05823112]
[1738249154081,0.015,3272.0,3271.4,3.44253112]
[1738249154289,1.0867,3272.5,3271.4,3.44253112]
[1738249154523,0.015,3272.4,3271.4,3.44253112]
[1738249155387,0.015,3272.4,3271.8,3.44253112]
[1738249155693,0.015,3272.5,3271.8,4.05823112]
[1738249156400,0.015,3272.6,3271.8,4.05823112]
[1738249156558,0.347354,3272.6,3271.8,4.05823112]
[1738249156762,0.015,3272.6,3272.2,3.44253112]
[1738249157588,0.015,3272.6,3271.9,3.05628]
[1738249157909,0.015,3272.6,3271.8,4.05823112]
[1738249157910,0.015,3272.6,3271.8,0.6157]
[1738249158579,0.015,3272.3,3271.8,0.6157]
[1738249158784,0.015,3272.5,3271.8,0.6157]
[1738249158948,0.015,3272.3,3271.8,0.6157]
[1738249159352,3.015,3272.5,3271.8,0.6157]
[1738249159553,0.015,3272.5,3271.8,0.6157]
[1738249160166,0.015,3272.6,3271.8,0.6157]
[1738249160367,0.0075,3272.6,3271.8,7.11464112]
[1738249160582,0.015,3272.9,3271.8,7.11464112]
[1738249160764,0.015,3272.9,3271.8,3.67211]
[1738249160985,0.015,3272.7,3271.8,3.67211]
[1738249161497,0.015,3272.7,3271.8,0.6157]
[1738249162152,0.0075,3272.7,3272.0,3.05615]
[1738249162499,0.0075,3272.7,3271.8,3.67208]
[1738249162500,4.11228,3273.3,3271.8,4.05823112]
[1738249162679,0.015,3272.9,3271.9,3.05631]
[1738249162881,0.0075,3272.7,3271.9,3.05631]
[1738249163066,0.0075,3272.7,3271.8,7.11463112]
[1738249163390,0.015,3272.7,3271.8,0.6157]
[1738249163752,0.015,3272.7,3271.8,3.70266672]
[1738249164454,3.05513,3273.2,3271.8,3.70266672]
[1738249164455,0.8062,3273.3,3271.9,3.05632]
[1738249164654,0.74706872,3273.2,3272.1,3.05613]
[1738249164886,0.015,3273.1,3272.1,3.05613]
[1738249165357,0.015,3273.1,3272.0,3.08675402]
[1738249165358,3.015,3273.1,3272.0,3.08675402]
[1738249165557,3.0702,3273.1,3271.9,0.55]
[1738249165797,0.015,3273.1,3272.0,3.05622]
[1738249166259,0.80233387,3273.1,3272.1,3.05612]
[1738249166614,5.91363109,3275.3,3272.8,3.05548]
[1738249166615,0.8097,3273.8,3272.8,3.05548]
[1738249166982,0.015,3273.7,3272.7,0.03054861]
[1738249167182,0.015,3273.7,3272.6,3.05566]
[1738249167482,0.015,3273.7,3272.6,3.08620862]
[1738249167988,0.0075,3273.5,3272.4,3.67155]
[1738249168210,0.0075,3273.3,3272.4,3.67155]
[1738249168713,0.0075,3273.3,3272.5,0.03055058]
[1738249168870,6.05465,3273.7,3272.6,3.05565]
[1738249169066,3.8097,3273.8,3272.7,3.05556]
[1738249169319,0.015,3273.6,3272.6,3.4455656]
[1738249169484,0.0075,3273.4,3272.4,3.6715]
[1738249169817,0.0075,3273.4,3272.5,3.05575]
[1738249170421,0.015,3273.5,3272.5,3.05575]
[1738249170622,3.05495,3273.4,3272.4,0.6157]
[1738249170919,6.07009,3273.3,3272.4,0.6157]
[1738249171124,0.0075,3273.1,3272.4,0.6157]
[1738249171423,3.0075,3273.1,3272.4,0.6157]
[1738249171586,0.0075,3273.1,3272.4,0.6157]
[1738249171937,0.607009,3273.2,3272.5,0.0305519]
[1738249172608,0.607009,3273.2,3272.4,0.6157]
[1738249172775,0.3669529,3273.1,3272.4,0.6157]
[1738249172970,0.3669529,3273.1,3272.5,0.03055193]
[1738249173218,3.015,3273.4,3272.5,0.03055193]
[1738249173530,6.06999,3273.4,3272.5,0.0305519]
[1738249174216,3.015,3273.4,3272.5,0.0305519]
[1738249174417,6.06997,3273.4,3272.4,0.6157]
[1738249174718,3.05504,3273.3,3272.4,0.6157]
[1738249174920,0.015,3273.0,3272.0,0.6157]
[1738249175236,3.015,3273.0,3272.0,3.6719]
[1738249175384,3.015,3273.0,3272.1,3.05613]
[1738249175586,3.015,3273.0,3272.1,3.08668407]
[1738249175587,0.015,3273.0,3272.1,3.08668407]
[1738249175830,0.607004,3273.2,3272.1,0.55]
[1738249175983,0.607004,3273.2,3272.6,3.05567]
[1738249176187,0.831,3273.4,3272.5,3.05576]
[1738249176383,0.015,3273.3,3272.3,3.05592]
[1738249177029,0.015,3273.3,3272.4,0.03055109]
[1738249177225,6.07006,3273.3,3272.1,3.60606]
[1738249177432,6.07006,3273.3,3272.2,3.05601]
[1738249177735,0.690106,3273.2,3272.2,3.05601]
[1738249178231,0.690106,3273.2,3272.2,3.70318221]
[1738249178529,0.690106,3273.2,3272.3,3.5101036]
[1738249179307,0.690106,3273.2,3272.3,3.5101136]
[1738249179523,0.690106,3273.2,3272.4,0.64717221]
[1738249179741,0.6760166,3273.1,3272.4,0.64717221]
[1738249180049,0.6760166,3273.1,3272.4,1.10133581]
[1738249180192,0.831,3273.4,3272.5,0.03055142]
[1738249180522,0.831,3273.4,3272.4,1.10133581]
[1738249180523,0.015,3273.3,3272.4,1.10133581]
[1738249180706,3.0,3273.1,3272.6,0.28385368]
[1738249180904,3.0,3273.1,3272.6,0.64717221]
[1738249181534,3.015,3273.3,3272.6,0.64717221]
[1738249181739,0.690092,3273.2,3272.6,0.64717221]
[1738249182035,0.690092,3273.2,3272.6,1.26287221]
[1738249182236,0.015,3273.3,3272.6,1.26287221]
[1738249182441,0.831,3273.4,3272.6,1.26287221]
[1738249182594,0.831,3273.4,3272.7,0.28385368]
[1738249182994,0.831,3273.4,3272.7,0.64717221]
[1738249183890,0.831,3273.4,3272.8,0.28385368]
[1738249184344,0.831,3273.4,3272.8,0.64717221]
[1738249185420,0.831,3273.4,3272.9,0.28385368]
[1738249185846,0.0075,3273.3,3272.9,0.28385368]
[1738249186013,0.38385,3273.2,3272.9,0.28385368]
[1738249186430,3.38385,3273.2,3272.9,0.28385368]
[1738249186667,3.0,3272.8,3271.9,0.6109541]
[1738249186811,0.0075,3273.1,3271.7,3.67218]
[1738249187004,3.339135,3273.0,3271.9,3.05626]
[1738249187344,3.339135,3273.0,3272.0,3.05622]
[1738249187345,0.339135,3273.0,3272.0,3.05622]
[1738249187545,0.339135,3273.0,3271.9,3.05626]
[1738249187747,0.339135,3273.0,3272.1,3.05609]
[1738249187941,0.339135,3273.0,3272.1,3.08664396]
[1738249188805,0.339135,3273.0,3272.1,3.08667396]
[1738249189223,3.7573,3272.8,3272.2,0.36544715]
[1738249189423,0.682026,3272.7,3272.2,0.36544715]
[1738249189662,0.682026,3272.7,3272.2,0.65097367]